bitfinex/quotes_SOLUSD_20250108
["timestamp","ask_amount","ask_price","bid_price","bid_amount"]
[1736363087162,12.95242573,194.53,194.32,41.25111144]
[1736363087357,12.95242573,194.53,194.33,23.776884]
[1736363087900,42.95242573,194.53,194.29,5.71710831]
[1736363088185,12.95242573,194.53,194.31,41.25111144]
[1736363088477,42.95242573,194.53,194.32,23.776884]
[1736363088663,23.776884,194.52,194.31,3.4]
[1736363088865,12.95242573,194.53,194.32,65.79969948]
[1736363089076,12.95242573,194.53,194.35,23.776884]
[1736363089277,12.95242573,194.53,194.37,23.776884]
[1736363089653,12.95242573,194.53,194.33,41.25111144]
[1736363089871,12.95242573,194.53,194.34,23.776884]
[1736363090266,23.776884,194.52,194.31,3.4]
[1736363090574,23.776884,194.52,194.29,1.5456]
[1736363090575,23.776884,194.49,194.29,1.5456]
[1736363090778,23.776884,194.49,194.27,41.25111144]
[1736363090970,23.776884,194.49,194.27,23.776884]
[1736363091285,23.776884,194.49,194.26,4.17171544]
[1736363091286,23.776884,194.49,194.26,3.4]
[1736363091582,23.776884,194.43,194.22,7.7159]
[1736363091795,23.776884,194.41,194.22,1.6075]
[1736363092375,23.776884,194.41,194.22,42.85861144]
[1736363092578,23.776884,194.41,194.22,2.37947638]
[1736363092892,23.776884,194.41,194.23,23.776884]
[1736363093189,3.4,194.42,194.23,23.776884]
[1736363093689,4.4944,194.44,194.25,23.776884]
[1736363093868,23.776884,194.43,194.27,23.776884]
[1736363094390,4.4944,194.44,194.29,23.776884]
[1736363094686,4.4944,194.44,194.31,23.776884]
[1736363094894,4.4944,194.44,194.3,0.77171646]
[1736363095088,4.4944,194.44,194.26,3.38]
[1736363095289,27.176884,194.43,194.22,1.6075]
[1736363095885,23.776884,194.41,194.16,48.97031144]
[1736363096193,23.776884,194.41,194.18,23.776884]
[1736363096792,0.3357,194.4,194.18,23.776884]
[1736363097081,23.776884,194.39,194.16,7.7192]
[1736363097592,23.776884,194.39,194.17,23.776884]
[1736363097984,0.3357,194.4,194.17,23.776884]
[1736363098291,54.112584,194.4,194.16,7.7192]
[1736363098492,54.112584,194.4,194.17,23.776884]
[1736363098691,23.776884,194.37,194.16,1.6108]
[1736363099201,23.776884,194.35,194.16,1.6108]
[1736363099493,23.776884,194.33,194.12,41.25111144]
[1736363099685,23.776884,194.33,194.14,23.776884]
[1736363099994,23.776884,194.33,194.16,23.776884]
[1736363100179,23.776884,194.37,194.16,23.776884]
[1736363100492,4.4944,194.39,194.21,23.776884]
[1736363100695,4.4944,194.39,194.23,23.776884]
[1736363100893,4.4944,194.39,194.25,23.776884]
[1736363101203,4.4944,194.45,194.28,41.25111144]
[1736363101512,4.4944,194.45,194.32,23.776884]
[1736363101711,4.4944,194.45,194.32,3.36]
[1736363103169,4.4944,194.45,194.33,23.776884]
[1736363103582,4.4944,194.45,194.31,3.36]
[1736363103782,23.776884,194.44,194.26,3.36]
[1736363105186,23.776884,194.42,194.19,6.5374]
[1736363105384,23.776884,194.42,194.2,3.36]
[1736363105784,53.776884,194.42,194.2,3.36]
[1736363105984,23.776884,194.37,194.2,3.36]
[1736363106479,23.776884,194.37,194.14,3.36]
[1736363106804,23.776884,194.37,194.15,23.776884]
[1736363107184,23.776884,194.37,194.18,65.02799544]
[1736363107388,23.776884,194.37,194.19,65.80000608]
[1736363107690,4.8301,194.44,194.26,41.25111144]
[1736363107901,4.8301,194.44,194.3,23.776884]
[1736363108100,4.8301,194.52,194.32,65.02799544]
[1736363108287,4.8301,194.52,194.34,23.776884]
[1736363108489,4.8301,194.52,194.36,23.776884]
[1736363108686,4.8301,194.52,194.38,23.776884]
[1736363109004,0.3357,194.59,194.4,23.776884]
[1736363109184,0.3357,194.59,194.42,23.776884]
[1736363109597,0.3357,194.59,194.44,23.776884]
[1736363109992,24.112584,194.59,194.44,23.776884]
[1736363110309,23.776884,194.59,194.44,23.776884]
[1736363110684,4.4944,194.66,194.44,23.776884]
[1736363110882,0.3357,194.67,194.46,23.776884]
[1736363111187,4.4944,194.68,194.45,45.38217986]
[1736363111188,4.4944,194.68,194.5,23.776884]
[1736363111517,4.4944,194.68,194.52,23.776884]
[1736363112094,4.4944,194.68,194.47,41.25111144]
[1736363112296,4.4944,194.68,194.48,42.02197731]
[1736363112503,3.38,194.74,194.52,23.776884]
[1736363112806,3.38,194.74,194.52,24.54753431]
[1736363112994,3.38,194.74,194.52,0.77072939]
[1736363113323,3.38,194.74,194.53,65.02799544]
[1736363113526,23.776884,194.73,194.55,23.776884]
[1736363114249,23.776884,194.71,194.54,3.38]
[1736363114597,30.0,194.72,194.54,3.38]
[1736363114905,30.0,194.72,194.46,20.0]
[1736363114906,23.776884,194.71,194.48,3.4]
[1736363115230,23.776884,194.68,194.43,47.66481144]
[1736363115437,23.776884,194.66,194.44,3.38]
[1736363115638,3.38,194.65,194.44,3.38]
[1736363115931,23.776884,194.64,194.44,3.38]
[1736363116235,23.776884,194.61,194.41,1.622]
[1736363116525,23.776884,194.59,194.35,6.1426]
[1736363116709,23.776884,194.59,194.36,44.63111144]
[1736363116918,23.776884,194.59,194.41,41.25111144]
[1736363117111,23.776884,194.59,194.42,65.02799544]
[1736363117328,23.776884,194.59,194.42,65.79906356]
[1736363117630,23.776884,194.59,194.42,24.54795212]
[1736363118018,23.776884,194.59,194.38,41.25111144]
[1736363118206,23.776884,194.59,194.36,45.40230253]
[1736363118406,23.776884,194.59,194.37,45.402464]
[1736363118607,23.776884,194.59,194.39,65.02799544]
[1736363118839,23.776884,194.59,194.39,65.79913045]
[1736363119440,23.776884,194.59,194.38,3.38]
[1736363119644,23.776884,194.57,194.38,3.38]
[1736363119852,23.776884,194.57,194.32,4.15124991]
[1736363120019,23.776884,194.57,194.32,3.38]
[1736363120330,23.776884,194.57,194.33,23.776884]
[1736363120510,23.776884,194.57,194.33,41.25111144]
[1736363121031,23.776884,194.57,194.33,23.776884]
[1736363121207,23.776884,194.54,194.33,3.38]
[1736363121627,23.776884,194.52,194.33,3.38]
[1736363121841,23.776884,194.55,194.33,42.02272327]
[1736363122138,33.7157,194.58,194.31,4.15140848]
[1736363122322,5.0,194.56,194.32,41.25111144]
[1736363122638,23.776884,194.52,194.29,1.5211]
[1736363122828,23.776884,194.52,194.31,23.776884]
[1736363123137,30.0,194.52,194.31,23.776884]
[1736363123359,23.776884,194.51,194.3,23.776884]
[1736363124111,23.776884,194.53,194.3,23.776884]
[1736363124540,23.776884,194.51,194.3,23.776884]
[1736363124741,25.6314485,194.55,194.32,23.776884]
[1736363124959,5.0,194.54,194.32,23.776884]
[1736363125263,30.0,194.56,194.32,23.776884]
[1736363125264,27.156884,194.53,194.32,23.776884]
[1736363125620,27.156884,194.53,194.3,41.25111144]
[1736363125842,53.776884,194.53,194.3,41.25111144]
[1736363126121,23.776884,194.51,194.31,24.54843708]
[1736363126427,23.776884,194.51,194.3,23.776884]
[1736363126828,28.271284,194.49,194.27,3.36]
[1736363127018,28.271284,194.49,194.28,23.776884]
[1736363127219,28.271284,194.49,194.28,65.02799544]
[1736363127521,28.271284,194.49,194.3,23.776884]
[1736363127825,53.66258492,194.49,194.29,23.776884]
[1736363128028,28.271284,194.49,194.3,24.5486602]
[1736363128231,28.271284,194.49,194.32,23.776884]
[1736363128537,4.4944,194.49,194.35,23.776884]
[1736363128723,4.4944,194.49,194.35,24.54827447]
[1736363128927,4.4944,194.49,194.35,65.79938591]
[1736363129137,4.4944,194.49,194.36,23.776884]
[1736363129431,4.4944,194.55,194.38,65.02799544]
[1736363129761,4.4944,194.55,194.36,3.34]
[1736363130053,4.4944,194.55,194.37,23.776884]
[1736363130720,4.4944,194.55,194.38,0.7714296]
[1736363130922,4.4944,194.55,194.39,65.02799544]
[1736363131128,4.4944,194.55,194.41,23.776884]
[1736363131569,4.4944,194.55,194.39,41.25111144]
[1736363131570,4.4944,194.55,194.39,23.776884]
[1736363131738,4.4944,194.55,194.36,3.34]
[1736363131925,4.4944,194.55,194.37,23.776884]
[1736363132759,23.776884,194.54,194.37,23.776884]
[1736363133122,23.776884,194.54,194.34,3.36]
[1736363133526,23.776884,194.54,194.35,23.776884]
[1736363134667,4.4944,194.55,194.35,24.54840275]
[1736363135255,4.4944,194.55,194.38,65.02799544]
[1736363135470,4.4944,194.55,194.38,23.776884]
[1736363136041,4.4944,194.55,194.37,65.02799544]
[1736363136248,4.4944,194.55,194.41,23.776884]
[1736363136461,4.4944,194.55,194.41,24.5480395]
[1736363137059,4.4944,194.55,194.41,65.79915094]
[1736363137377,4.4944,194.55,194.4,23.776884]
[1736363137759,4.4944,194.55,194.36,41.25111144]
[1736363137949,23.776884,194.54,194.35,41.25111144]
[1736363138153,23.776884,194.54,194.36,3.36]
[1736363138354,23.776884,194.54,194.32,41.25111144]
[1736363138548,23.776884,194.54,194.34,41.25111144]
[1736363138778,23.776884,194.54,194.34,23.776884]
[1736363139257,23.776884,194.54,194.36,23.776884]
[1736363139452,4.4944,194.55,194.36,23.776884]
[1736363139652,4.4944,194.55,194.38,23.776884]
[1736363139872,23.776884,194.54,194.34,41.25111144]
[1736363140082,23.776884,194.54,194.33,4.13132623]
[1736363140251,23.776884,194.54,194.34,23.776884]
[1736363140448,23.776884,194.54,194.33,4.13132623]
[1736363140655,30.0,194.51,194.25,1.6217]
[1736363140856,23.776884,194.48,194.25,2.39341769]
[1736363141073,0.3357,194.47,194.26,41.25111144]
[1736363141270,0.3357,194.47,194.3,41.25111144]
[1736363141479,0.3357,194.47,194.34,23.776884]
[1736363141662,0.3357,194.47,194.34,27.92837958]
[1736363142062,0.3357,194.53,194.36,23.776884]
[1736363142485,0.3357,194.53,194.34,44.63111144]
[1736363142486,0.3357,194.53,194.35,23.776884]
[1736363142856,0.3357,194.53,194.34,4.1514499]
[1736363143074,0.3357,194.53,194.25,1.6217]
[1736363143075,23.776884,194.52,194.29,41.25111144]
[1736363143274,23.776884,194.52,194.33,23.776884]
[1736363143479,30.0,194.49,194.32,3.38]
[1736363143652,23.776884,194.46,194.25,1.6217]
[1736363143856,23.776884,194.46,194.24,6.6491]
[1736363143857,23.776884,194.44,194.24,6.6491]
[1736363144057,23.776884,194.44,194.25,23.776884]
[1736363144260,3.38,194.45,194.25,49.2423804]
[1736363144460,23.776884,194.44,194.25,49.2423804]
[1736363144782,23.776884,194.44,194.25,25.4654964]
[1736363144964,23.776884,194.44,194.26,23.776884]
[1736363145474,23.776884,194.44,194.25,23.776884]
[1736363145676,23.776884,194.44,194.21,45.56068758]
[1736363145967,23.776884,194.44,194.18,47.84620651]
[1736363145968,23.776884,194.42,194.18,47.84620651]
[1736363146170,30.0,194.41,194.18,6.4374]
[1736363146481,0.3357,194.43,194.24,23.776884]
[1736363146698,0.3357,194.43,194.27,41.40880651]
[1736363146983,0.3357,194.43,194.3,23.776884]
[1736363147279,4.4944,194.47,194.3,65.95729354]
[1736363147583,4.4944,194.47,194.3,24.54848703]
[1736363148177,4.4944,194.47,194.3,65.95729354]
[1736363148461,4.4944,194.47,194.3,24.54848703]
[1736363148688,4.4944,194.47,194.28,44.76880651]
[1736363148689,23.776884,194.46,194.28,44.76880651]
[1736363148897,4.4944,194.47,194.3,65.18569051]
[1736363149087,4.4944,194.47,194.32,65.18569051]
[1736363149260,4.4944,194.47,194.33,23.776884]
[1736363149464,23.776884,194.46,194.28,44.76880651]
[1736363149761,23.776884,194.46,194.28,3.36]
[1736363150172,30.0,194.43,194.2,41.40880651]
[1736363150486,23.776884,194.41,194.19,42.93620651]
[1736363150793,23.776884,194.41,194.19,1.5274]
[1736363151000,23.776884,194.38,194.15,41.40880651]
[1736363151287,23.776884,194.38,194.15,3.36]
[1736363151288,53.776884,194.38,194.15,3.36]
[1736363151491,23.776884,194.38,194.15,3.36]
[1736363151694,23.776884,194.38,194.16,65.95785246]
[1736363152082,23.776884,194.38,194.18,23.776884]
[1736363152501,23.776884,194.38,194.16,42.18096846]
[1736363152707,53.776884,194.38,194.15,23.36]
[1736363152904,23.776884,194.38,194.16,65.18569051]
[1736363153104,23.776884,194.38,194.18,23.776884]
[1736363153308,23.776884,194.38,194.15,23.36]
[1736363153309,23.776884,194.36,194.15,3.36]
[1736363153508,4.4944,194.32,194.09,41.40880651]
[1736363153709,0.3357,194.3,194.08,44.76880651]
[1736363154007,0.3357,194.3,194.11,65.18569051]
[1736363154204,0.3357,194.3,194.13,23.776884]
[1736363154709,0.3357,194.3,194.11,65.95805128]
[1736363155009,0.3357,194.3,194.11,0.77236077]
[1736363155411,0.3357,194.3,194.09,3.34]
[1736363155620,23.776884,194.29,194.07,3.34]
[1736363156211,23.776884,194.27,194.05,1.5659]
[1736363156417,23.776884,194.29,194.06,41.40880651]
[1736363156588,23.776884,194.29,194.07,65.18569051]
[1736363156794,0.3357,194.3,194.09,23.776884]
[1736363156995,23.776884,194.29,194.08,23.776884]
[1736363157194,23.776884,194.29,194.12,23.776884]
[1736363157394,0.3357,194.3,194.12,24.54919383]
[1736363157596,0.3357,194.3,194.14,23.776884]
[1736363157893,0.3357,194.3,194.17,23.776884]
[1736363158204,4.4944,194.32,194.19,65.18569051]
[1736363158508,4.4944,194.32,194.21,23.776884]
[1736363159393,0.3357,194.36,194.23,23.776884]
[1736363159597,4.4944,194.37,194.27,65.18569051]
[1736363159799,4.4944,194.44,194.31,65.18569051]
[1736363160012,4.8301,194.5,194.34,23.776884]
[1736363160318,4.8301,194.5,194.34,24.54836198]
[1736363160692,4.8301,194.5,194.34,65.95716849]
[1736363160887,4.8301,194.5,194.37,23.776884]
[1736363161192,4.4944,194.5,194.33,0.77135078]
[1736363161386,4.4944,194.5,194.34,23.776884]
[1736363161613,4.4944,194.5,194.34,65.18569051]
[1736363161803,4.4944,194.5,194.36,65.18569051]
[1736363162012,4.4944,194.5,194.38,23.776884]
[1736363162214,4.4944,194.57,194.4,23.776884]
[1736363162535,4.4944,194.57,194.42,65.18569051]
[1736363162695,4.4944,194.57,194.45,23.776884]
[1736363162903,13.35728826,194.64,194.45,23.776884]
[1736363162904,17.85168826,194.64,194.47,23.776884]
[1736363163309,23.776884,194.63,194.47,23.776884]
[1736363163516,4.4944,194.64,194.47,23.776884]
[1736363163719,4.4944,194.64,194.47,24.54788363]
[1736363163903,4.4944,194.64,194.49,65.18569051]
[1736363164102,4.4944,194.64,194.51,65.18569051]
[1736363164613,23.776884,194.7,194.51,23.776884]
[1736363164916,25.090952,194.71,194.53,23.776884]
[1736363165120,4.4944,194.71,194.56,41.40880651]
[1736363165303,4.4944,194.71,194.57,27.136884]
[1736363165706,4.4944,194.71,194.54,0.77069424]
[1736363165904,4.4944,194.71,194.52,44.76880651]
[1736363166105,4.4944,194.71,194.52,3.36]
[1736363166316,4.4944,194.71,194.55,41.40880651]
[1736363166494,4.4944,194.71,194.56,65.18569051]
[1736363166697,4.4944,194.71,194.56,23.776884]
[1736363167115,4.4944,194.71,194.57,23.776884]
[1736363167737,4.4944,194.71,194.55,23.776884]
[1736363168120,4.4944,194.71,194.55,65.18569051]
[1736363168326,3.34,194.77,194.6,23.776884]
[1736363168835,53.776884,194.76,194.53,41.40880651]
[1736363169041,23.776884,194.76,194.53,44.74880651]
[1736363169341,53.776884,194.76,194.53,44.74880651]
[1736363169518,53.776884,194.76,194.52,42.17928458]
[1736363169717,53.776884,194.76,194.53,65.18569051]
[1736363169919,23.776884,194.72,194.49,41.40880651]
[1736363170133,23.776884,194.72,194.5,3.32]
[1736363170328,30.0,194.76,194.51,65.95654597]
[1736363170555,3.34,194.77,194.53,65.18569051]
[1736363170833,3.34,194.77,194.55,23.776884]
[1736363171037,34.4944,194.78,194.55,65.18569051]
[1736363171222,3.32,194.76,194.55,65.95634673]
[1736363171533,4.4944,194.78,194.59,23.776884]
[1736363171742,7.8144,194.78,194.59,65.18569051]
[1736363172139,7.8144,194.78,194.59,23.776884]
[1736363172441,4.4944,194.78,194.61,23.776884]
[1736363172628,23.776884,194.77,194.61,23.776884]
[1736363172826,4.4944,194.78,194.61,23.776884]
[1736363173226,23.776884,194.77,194.61,23.776884]
[1736363173541,4.4944,194.78,194.61,23.776884]
[1736363173726,23.776884,194.77,194.6,23.776884]
[1736363174340,23.776884,194.77,194.54,41.40880651]
[1736363174642,23.776884,194.77,194.55,41.40880651]
[1736363174840,23.776884,194.75,194.54,3.3]
[1736363175144,4.4944,194.78,194.56,23.776884]
[1736363175330,4.4944,194.78,194.6,23.776884]
[1736363175931,23.776884,194.77,194.6,23.776884]
[1736363176136,23.776884,194.77,194.58,41.40880651]
[1736363176443,13.51513757,194.81,194.67,41.40880651]
[1736363176637,4.4944,194.85,194.67,41.40880651]
[1736363176638,4.4944,194.85,194.71,41.40880651]
[1736363176819,4.4944,194.85,194.72,23.776884]
[1736363177127,0.3357,194.9,194.72,65.18569051]
[1736363177331,0.3357,194.9,194.74,23.776884]
[1736363177924,24.112584,194.9,194.69,41.40880651]
[1736363178224,0.3357,194.9,194.69,23.776884]
[1736363178421,0.3357,194.9,194.73,23.776884]
[1736363178660,0.3357,194.9,194.74,23.776884]
[1736363178944,4.4944,194.91,194.75,23.776884]
[1736363179255,25.04268177,194.9,194.7,41.40880651]
[1736363179433,23.776884,194.9,194.68,0.76984794]
[1736363179637,23.776884,194.87,194.65,41.40880651]
[1736363179825,30.0,194.84,194.63,4.9096]
[1736363180019,3.32,194.83,194.64,41.40880651]
[1736363180225,3.32,194.83,194.64,23.776884]
[1736363180448,3.32,194.83,194.67,23.776884]
[1736363180927,3.32,194.83,194.66,65.18569051]
[1736363181834,23.776884,194.87,194.66,65.18569051]
[1736363182152,23.776884,194.85,194.64,41.40880651]
[1736363182657,23.776884,194.85,194.66,23.776884]
[1736363182860,49.00930228,194.85,194.64,65.18569051]
[1736363183351,7.84108,195.16,194.74,41.40880651]
[1736363183352,4.4944,194.91,194.74,41.40880651]
[1736363183534,4.4944,194.91,194.76,65.18569051]
[1736363183735,23.776884,194.9,194.76,23.776884]
[1736363183936,4.4944,194.91,194.76,23.776884]
[1736363184153,4.4944,194.91,194.78,23.776884]
[1736363184376,4.4944,194.91,194.8,65.18569051]
[1736363184574,20.903258,194.97,194.82,65.18569051]
[1736363184867,4.4944,194.98,194.84,65.18569051]
[1736363185456,4.4944,194.98,194.86,65.18569051]
[1736363185632,4.4944,194.98,194.87,23.776884]
[1736363185841,4.4944,194.98,194.87,24.54628382]
[1736363186253,4.4944,194.98,194.84,41.40880651]
[1736363186479,4.4944,194.98,194.86,41.40880651]
[1736363186674,4.4944,194.98,194.85,0.76940363]
[1736363186675,4.4944,194.98,194.85,41.40880651]
[1736363186951,4.4944,194.98,194.84,41.40880651]
[1736363187254,4.4944,194.98,194.85,23.776884]
[1736363187437,4.4944,194.98,194.86,65.18569051]
[1736363187639,8.1301,195.04,194.88,23.776884]
[1736363188354,8.1301,195.04,194.87,23.776884]
[1736363188738,23.776884,195.03,194.83,41.40880651]
[1736363189055,23.776884,195.03,194.87,23.776884]
[1736363189446,23.776884,195.03,194.87,65.18569051]
[1736363189760,23.776884,195.03,194.87,23.776884]
[1736363190554,27.076884,195.03,194.84,41.40880651]
[1736363190858,27.076884,195.03,194.86,65.18569051]
[1736363191058,4.8301,195.04,194.88,65.18569051]
[1736363191358,4.4944,195.04,194.9,65.18569051]
[1736363191535,4.4944,195.04,194.92,23.776884]
[1736363191731,4.4944,195.04,194.92,65.18569051]
[1736363191931,4.4944,195.04,194.94,23.776884]
[1736363192156,4.4944,195.1,194.96,23.776884]
[1736363192362,43.09776214,195.21,195.09,41.40880651]
[1736363192537,43.09776214,195.21,195.01,5.0]
[1736363192538,30.0,195.3,195.13,41.40880651]
[1736363192741,4.4944,195.31,195.14,41.40880651]
[1736363192949,4.4944,195.31,195.15,41.40880651]
[1736363193248,3.32,195.37,195.18,41.40880651]
[1736363193558,3.32,195.37,195.2,41.40880651]
[1736363193858,3.32,195.37,195.21,42.17700101]
[1736363194340,4.4944,195.38,195.29,41.40880651]
[1736363194545,34.8301,195.5,195.29,41.40880651]
[1736363194752,50.516917,195.48,195.27,41.40880651]
[1736363194950,30.0,195.46,195.24,44.74880651]
[1736363195153,30.0,195.42,195.24,3.34]
[1736363195358,30.0,195.39,195.17,41.40880651]
[1736363195535,23.776884,195.36,195.16,44.74880651]
[1736363195754,23.776884,195.36,195.13,41.40880651]
[1736363195755,23.776884,195.34,195.13,41.40880651]
[1736363195945,23.776884,195.34,195.12,9.8331]
[1736363196260,30.0,195.4,195.2,41.40880651]
[1736363196439,30.0,195.4,195.12,10.60148521]
[1736363196440,30.0,195.4,195.21,44.76880651]
[1736363196641,23.776884,195.39,195.21,27.136884]
[1736363197142,30.0,195.44,195.24,23.776884]
[1736363197540,30.0,195.44,195.23,23.776884]
[1736363197758,30.0,195.42,195.21,44.76880651]
[1736363197955,23.776884,195.38,195.19,3.34]
[1736363198164,27.116884,195.38,195.21,41.40880651]
[1736363198379,27.116884,195.38,195.2,41.40880651]
[1736363198578,27.116884,195.38,195.19,44.74880651]
[1736363198744,27.116884,195.38,195.2,23.776884]
[1736363198944,27.116884,195.38,195.2,65.18569051]
[1736363199264,27.116884,195.38,195.2,41.40880651]
[1736363199563,3.34,195.38,195.19,44.74880651]
[1736363199775,30.0,195.36,195.19,3.34]
[1736363199975,30.0,195.36,195.13,0.76806396]
[1736363199976,30.0,195.34,195.13,3.34]
[1736363200179,23.776884,195.33,195.13,3.34]
[1736363200345,23.776884,195.33,195.13,44.74880651]
[1736363200845,23.776884,195.33,195.14,23.776884]
[1736363201251,23.776884,195.33,195.13,44.74880651]
[1736363201449,23.776884,195.31,195.13,3.34]
[1736363202256,53.776884,195.31,195.1,41.40880651]
[1736363202565,53.776884,195.31,195.11,23.776884]
[1736363202769,23.776884,195.28,195.08,42.96580651]
[1736363203064,23.776884,195.26,195.06,41.40880651]
[1736363203371,23.776884,195.23,195.04,41.40880651]
[1736363203749,30.0,195.26,195.06,41.40880651]
[1736363203951,23.776884,195.25,195.05,41.40880651]
[1736363204150,23.776884,195.23,195.02,41.40880651]
[1736363205046,23.776884,195.2,195.0,41.40880651]
[1736363205467,23.776884,195.2,195.01,41.40880651]
[1736363205680,3.3,195.2,195.04,41.40880651]
[1736363205889,30.0,195.28,195.06,65.18569051]
[1736363206051,3.3,195.26,195.08,41.40880651]
[1736363206383,23.776884,195.25,195.06,23.776884]
[1736363206550,23.776884,195.25,195.06,41.40880651]
[1736363207385,30.0,195.3,195.09,65.18569051]
[1736363207586,4.4944,195.32,195.15,65.18569051]
[1736363207889,4.4944,195.32,195.07,3.3]
[1736363207890,4.4944,195.32,195.12,65.18569051]
[1736363208135,30.0,195.31,195.09,41.40880651]
[1736363208253,30.0,195.31,195.07,4.06833453]
[1736363208254,23.776884,195.3,195.07,4.06833453]
[1736363208455,23.776884,195.3,195.09,23.776884]
[1736363208456,23.776884,195.28,195.09,23.776884]
[1736363208689,23.776884,195.28,195.07,44.70880651]
[1736363208854,23.776884,195.28,195.08,23.776884]
[1736363209052,23.776884,195.25,195.07,3.3]
[1736363209390,30.0,195.28,195.07,3.3]
[1736363209579,23.776884,195.27,195.08,23.776884]
[1736363209950,30.0,195.31,195.1,23.776884]
[1736363210287,23.776884,195.3,195.1,23.776884]
[1736363210446,23.776884,195.28,195.07,44.70880651]
[1736363210646,23.776884,195.28,195.08,23.776884]
[1736363211075,23.776884,195.25,195.05,3.3]
[1736363211284,23.776884,195.23,195.06,23.776884]
[1736363211447,23.776884,195.23,195.05,3.3]
[1736363211642,53.776884,195.23,195.01,3.3]
[1736363211877,23.776884,195.21,195.01,3.3]
[1736363212076,23.776884,195.21,195.02,23.776884]
[1736363212277,23.776884,195.21,195.02,65.18569051]
[1736363212699,23.776884,195.21,195.02,23.776884]
[1736363212903,4.4944,195.22,195.0,0.76886545]
[1736363212904,3.6357,195.2,195.0,41.40880651]
[1736363213081,3.6357,195.2,195.04,41.40880651]
[1736363213496,23.776884,195.19,195.02,65.18569051]
[1736363213691,23.776884,195.19,194.99,41.40880651]
[1736363213890,0.3357,195.2,194.99,41.40880651]
[1736363214080,0.3357,195.2,195.01,23.776884]
[1736363214284,24.112584,195.2,195.01,23.776884]
[1736363214684,24.112584,195.2,195.01,41.40880651]
[1736363214894,24.112584,195.2,195.02,41.40880651]
[1736363215090,0.3357,195.2,195.06,41.40880651]
[1736363215295,0.3357,195.2,195.05,41.40880651]
[1736363215509,0.3357,195.2,195.06,41.40880651]
[1736363216226,0.3357,195.2,195.0,41.40880651]
[1736363216535,23.776884,195.19,195.0,41.40880651]
[1736363216690,23.776884,195.19,194.99,65.18569051]
[1736363216896,23.776884,195.19,195.0,41.40880651]
[1736363218503,23.776884,195.17,194.99,3.28]
[1736363218688,23.776884,195.15,194.99,44.68880651]
[1736363219113,23.776884,195.15,194.99,3.28]
[1736363219490,23.776884,195.15,194.96,41.40880651]
[1736363219700,25.03684509,195.12,194.94,44.68880651]
[1736363219898,3.28,195.16,194.98,41.40880651]
[1736363220198,23.776884,195.15,194.98,41.40880651]
[1736363220400,23.776884,195.15,194.97,41.40880651]
[1736363220618,53.776884,195.15,194.95,41.40880651]
[1736363220913,53.776884,195.13,194.93,41.40880651]
[1736363221111,23.776884,195.13,194.96,41.40880651]
[1736363221323,23.776884,195.13,194.97,41.40880651]
[1736363221498,23.776884,195.13,194.98,41.40880651]
[1736363221702,23.776884,195.13,194.97,41.40880651]
[1736363222215,23.776884,195.13,194.95,0.76908149]
[1736363222216,53.776884,195.13,194.95,41.40880651]
[1736363222418,23.776884,195.13,194.97,41.40880651]
[1736363223014,23.776884,195.13,194.98,41.40880651]
[1736363223219,4.4944,195.14,195.01,41.40880651]
[1736363223598,4.4944,195.14,195.06,41.40880651]
[1736363223805,4.8301,195.2,195.07,41.40880651]
[1736363224019,4.8301,195.2,195.06,41.40880651]
[1736363224220,4.4944,195.2,195.1,41.40880651]
[1736363224422,4.8301,195.26,195.14,41.40880651]
[1736363224722,4.8301,195.26,195.15,41.40880651]
[1736363225098,4.4944,195.26,195.16,41.40880651]
[1736363225299,4.4944,195.32,195.18,41.40880651]
[1736363225624,20.530029,195.31,195.18,41.40880651]
[1736363225816,4.4944,195.32,195.18,41.40880651]
[1736363226197,4.4944,195.32,195.14,23.776884]